fUST/lending_fUST_20241126
["ID","MTS","AMOUNT","RATE_DAILY","PERIOD"]
[343455591,1732630248276,-500.0,0.00029315,2]
[343455592,1732630248285,-500.0,0.00029315,2]
[343455593,1732630248294,-692.85,0.00029315,2]
[343455594,1732630248304,-692.85,0.00029315,2]
[343455595,1732630248313,-692.85,0.00029315,2]
[343455596,1732630248322,-692.85,0.00029315,2]
[343455597,1732630248333,-692.85,0.00029315,2]
[343455598,1732630248342,-692.85,0.00029315,2]
[343455599,1732630248351,-692.85,0.00029315,2]
[343455600,1732630248369,-692.85,0.00029315,2]
[343455601,1732630248381,-692.85,0.00029315,2]
[343455602,1732630248390,-692.85,0.00029315,2]
[343455603,1732630248400,-692.85,0.00029315,2]
[343455604,1732630248409,-692.85,0.00029315,2]
[343455605,1732630248418,-692.85,0.00029315,2]
[343455606,1732630248428,-500.0,0.00029315,2]
[343455607,1732630248438,-500.0,0.00029315,2]
[343455608,1732630248448,-500.0,0.00029315,2]
[343455609,1732630248461,-500.0,0.00029315,2]
[343455610,1732630248471,-500.0,0.00029315,2]
[343455611,1732630248481,-500.0,0.00029315,2]
[343455612,1732630248491,-500.0,0.00029315,2]
[343455613,1732630248502,-500.0,0.00029315,2]
[343455614,1732630248512,-500.0,0.00029315,2]
[343455615,1732630248522,-500.0,0.00029315,2]
[343455616,1732630248533,-500.0,0.00029315,2]
[343455617,1732630248545,-500.0,0.00029315,2]
[343455618,1732630248556,-500.0,0.00029315,2]
[343455619,1732630248567,-500.0,0.00029315,2]
[343455620,1732630248584,-500.0,0.00029315,2]
[343455621,1732630248595,-500.0,0.00029315,2]
[343455622,1732630248606,-500.0,0.00029315,2]
[343455623,1732630248617,-500.0,0.00029315,2]
[343455624,1732630248628,-515.2,0.00029315,2]
[343455625,1732630248639,-500.0,0.00029373,5]
[343455626,1732630248650,-500.0,0.00029373,5]
[343455627,1732630248662,-500.0,0.00029399,2]
[343455628,1732630248673,-5024.05185941,0.000294,7]
[343455629,1732630248684,-159.22708423,0.00029473,2]
[343455630,1732630248695,-500.0,0.00029552,2]
[343455631,1732630248706,-500.0,0.00029553,2]
[343455632,1732630248716,-303.67145783,0.00029555,2]
[343455633,1732630248727,-139019.32999115,0.00029556,2]
[343455634,1732630248746,-33000.0000001,0.00029556,2]
[343455636,1732630718919,608.35474716,0.00031507,120]
[343455637,1732630737643,2477.62375905,0.0002968,120]
[343455638,1732630810839,167.859787,0.00013973,2]
[343455647,1732631048053,508.03,0.00022,7]
[343455655,1732631234145,-190.92523417,0.0002376,2]
[343455656,1732631234167,-346.74995347,0.00024,2]
[343455657,1732631238272,-270.1043658,0.00024,2]
[343455658,1732631238294,-612.3506641,0.00024,2]
[343455659,1732631238315,-302.8788636,0.00025,2]
[343455660,1732631238337,-302.8788636,0.00025,2]
[343455661,1732631238358,-302.8788636,0.0002525,2]
[343455662,1732631238380,-302.8788636,0.0002525,2]
[343455663,1732631238407,-267.35788965,0.000255,2]
[343455664,1732631238430,-302.42499913,0.000255,2]
[343455665,1732631238453,-300.0,0.00025669,2]
[343455666,1732631238476,-300.0,0.00025669,2]
[343455667,1732631238498,-1234.67220735,0.00025669,2]
[343455668,1732631252106,-2366.1864095,0.00025669,2]
[343455669,1732631291597,1066.06543283,0.0002,2]
[343455670,1732631318903,10000.0,0.0002,2]
[343455671,1732631322649,3570.65305643,0.0001,2]
[343455785,1732631438727,-554.79,0.0002499,3]
[343455786,1732631438736,-372.60422408,0.0002499,10]
[343455787,1732631438763,-508.57577592,0.0002499,10]
[343455788,1732631438773,-734.32,0.0002499,10]
[343455789,1732631438782,-611.93,0.0002499,10]
[343455790,1732631438791,-509.94,0.0002499,10]
[343455791,1732631438801,-300.0,0.00024999,2]
[343455792,1732631438814,-300.0,0.00024999,2]
[343455793,1732631438823,-1466.0,0.00024999,2]
[343455794,1732631438833,-500.0,0.00024999,2]
[343455795,1732631438842,-500.0,0.00024999,2]
[343455796,1732631438851,-500.0,0.00024999,2]
[343455797,1732631438860,-500.0,0.00024999,2]
[343455798,1732631438870,-500.0,0.00024999,2]
[343455799,1732631438879,-500.0,0.00024999,2]
[343455800,1732631438888,-500.0,0.00024999,2]
[343455801,1732631438899,-500.0,0.00024999,2]
[343455802,1732631438908,-500.0,0.00024999,2]
[343455803,1732631438917,-500.0,0.00024999,2]
[343455804,1732631438926,-500.0,0.00024999,2]
[343455805,1732631438935,-308.75157788,0.00024999,2]
[343455806,1732631438944,-500.0,0.00024999,2]
[343455807,1732631438953,-500.0,0.00024999,2]
[343455808,1732631438962,-500.0,0.00024999,2]
[343455809,1732631438971,-500.0,0.00024999,2]
[343455810,1732631438980,-500.0,0.00024999,2]
[343455811,1732631438989,-338.15300424,0.00024999,2]
[343455812,1732631438997,-500.0,0.00024999,2]
[343455813,1732631439010,-500.0,0.00024999,2]
[343455814,1732631439019,-500.0,0.00024999,2]
[343455815,1732631439028,-500.0,0.00024999,2]
[343455816,1732631439037,-500.0,0.00024999,2]
[343455817,1732631439046,-500.0,0.00024999,2]
[343455818,1732631439055,-500.0,0.00024999,2]
[343455819,1732631439064,-500.0,0.00024999,2]
[343455820,1732631439073,-500.0,0.00024999,2]
[343455821,1732631439083,-500.0,0.00024999,2]
[343455822,1732631439091,-500.0,0.00024999,2]
[343455823,1732631439100,-500.0,0.00024999,2]
[343455824,1732631439109,-500.0,0.00024999,2]
[343455825,1732631439118,-500.0,0.00024999,2]
[343455826,1732631439127,-499.31115885,0.00024999,2]
[343455827,1732631439137,-500.0,0.00024999,2]
[343455828,1732631439145,-500.0,0.00024999,2]
[343455829,1732631439154,-500.0,0.00024999,2]
[343455830,1732631439162,-516.15066244,0.00024999,2]
[343455831,1732631439172,-500.0,0.00024999,2]
[343455832,1732631439182,-500.0,0.00024999,2]
[343455833,1732631439190,-500.0,0.00024999,2]
[343455834,1732631439198,-500.0,0.00024999,2]
[343455835,1732631439206,-500.0,0.00024999,2]
[343455836,1732631439213,-500.0,0.00024999,2]
[343455837,1732631439222,-500.0,0.00024999,2]
[343455838,1732631439230,-500.0,0.00024999,2]
[343455839,1732631439238,-500.0,0.00024999,2]
[343455840,1732631439247,-500.0,0.00024999,2]
[343455841,1732631439259,-500.0,0.00024999,2]
[343455842,1732631439267,-349.04476556,0.00024999,2]
[343455843,1732631439275,-500.0,0.00024999,2]
[343455844,1732631439287,-500.0,0.00024999,2]
[343455845,1732631439295,-500.0,0.00024999,2]
[343455846,1732631439303,-500.0,0.00024999,2]
[343455847,1732631439311,-500.0,0.00024999,2]
[343455848,1732631439320,-535.85046319,0.00024999,2]
[343455849,1732631439329,-500.0,0.00024999,2]
[343455850,1732631439338,-500.0,0.00024999,2]
[343455851,1732631439346,-500.0,0.00024999,2]
[343455852,1732631439354,-500.0,0.00024999,2]
[343455853,1732631439363,-500.0,0.00024999,2]
[343455854,1732631439372,-500.0,0.00024999,2]
[343455855,1732631439381,-500.0,0.00024999,2]
[343455856,1732631439390,-500.0,0.00024999,2]
[343455857,1732631439399,-500.0,0.00024999,2]
[343455858,1732631439408,-500.0,0.00024999,2]
[343455859,1732631439416,-500.0,0.00024999,2]
[343455860,1732631439426,-500.0,0.00024999,2]
[343455861,1732631439435,-500.0,0.00024999,2]
[343455862,1732631439445,-500.0,0.00024999,2]
[343455863,1732631439455,-345.55799664,0.00024999,2]
[343455864,1732631439464,-500.0,0.00024999,2]
[343455865,1732631439474,-500.0,0.00024999,2]
[343455866,1732631439484,-500.0,0.00024999,2]
[343455867,1732631439493,-500.0,0.00024999,2]
[343455868,1732631439503,-500.0,0.00024999,2]
[343455869,1732631439517,-500.0,0.00024999,2]
[343455870,1732631439526,-500.0,0.00024999,2]
[343455871,1732631439536,-500.0,0.00024999,2]
[343455872,1732631439545,-500.0,0.00024999,2]
[343455873,1732631439555,-500.0,0.00024999,2]
[343455874,1732631439564,-500.0,0.00024999,2]
[343455875,1732631439573,-500.0,0.00024999,2]
[343455876,1732631439583,-500.0,0.00024999,2]
[343455877,1732631439593,-500.0,0.00024999,2]
[343455878,1732631439602,-500.0,0.00024999,2]
[343455879,1732631439611,-500.0,0.00024999,2]
[343455880,1732631439621,-500.0,0.00024999,2]
[343455881,1732631439632,-500.0,0.00024999,2]
[343455882,1732631439643,-500.0,0.00024999,2]
[343455883,1732631439652,-500.0,0.00024999,2]
[343455884,1732631439663,-500.0,0.00024999,2]
[343455885,1732631439672,-500.0,0.00024999,2]
[343455886,1732631439682,-500.0,0.00024999,2]
[343455887,1732631439692,-500.0,0.00024999,2]
[343455888,1732631439701,-500.0,0.00024999,2]
[343455889,1732631439710,-587.50300932,0.00024999,2]
[343455890,1732631439720,-500.0,0.00024999,2]
[343455891,1732631439730,-500.0,0.00024999,2]
[343455892,1732631439740,-500.0,0.00024999,2]
[343455893,1732631439749,-500.0,0.00024999,2]
[343455894,1732631439763,-500.0,0.00024999,2]
[343455895,1732631439773,-500.0,0.00024999,2]
[343455896,1732631439782,-500.0,0.00024999,2]
[343455897,1732631439791,-500.0,0.00024999,2]
[343455898,1732631439800,-500.0,0.00024999,2]
[343455899,1732631439810,-500.0,0.00024999,2]
[343455900,1732631439821,-500.0,0.00024999,2]
[343455901,1732631439831,-500.0,0.00024999,2]
[343455902,1732631439840,-500.0,0.00024999,2]
[343455903,1732631439850,-500.0,0.00024999,2]
[343455904,1732631439859,-500.0,0.00024999,2]
[343455905,1732631439869,-500.0,0.00024999,2]
[343455906,1732631439878,-500.0,0.00024999,2]
[343455907,1732631439887,-500.0,0.00024999,2]
[343455908,1732631439897,-500.0,0.00024999,2]
[343455909,1732631439907,-500.0,0.00024999,2]
[343455910,1732631439916,-500.0,0.00024999,2]
[343455911,1732631439927,-500.0,0.00024999,2]
[343455912,1732631439937,-500.0,0.00024999,2]
[343455913,1732631439947,-500.0,0.00024999,2]
[343455914,1732631439956,-500.0,0.00024999,2]
[343455915,1732631439965,-500.0,0.00024999,2]
[343455916,1732631439974,-500.0,0.00024999,2]
[343455917,1732631439983,-500.0,0.00024999,2]
[343455919,1732631439992,-256.74881931,0.00025,2]
[343455921,1732631440001,-15427.6227666,0.00025,2]
[343455944,1732631446547,-424.95,0.0002499,10]
[343455945,1732631446557,-9270.95000001,0.00025,2]
[343455946,1732631447652,-1910.0,0.00025,2]
[343455947,1732631447684,-7716.92048559,0.00025,2]
[343455948,1732631447717,-5474.19979657,0.00025,2]
[343455949,1732631447728,-29776.64743183,0.00025,2]
[343455950,1732631447740,-5105.28338127,0.00025,2]
[343455952,1732631524418,168.873446,0.00013973,2]
[343455953,1732632211809,167.044723,0.00013973,2]
[343456167,1732632439109,-212.939457,0.00022648,2]
[343456168,1732632439129,-929.8413508,0.00022847,2]
[343456169,1732632439150,-212.939457,0.00023332,2]
[343456170,1732632439171,-238.6737209,0.00023497,2]
[343456171,1732632439193,-177.08,0.00023604,2]
[343456172,1732632439214,-210.52129162,0.00023604,2]
[343456173,1732632439234,-300.0,0.00023612,2]
[343456174,1732632439256,-300.0,0.00023612,2]
[343456175,1732632439276,-5961.27135161,0.00023612,2]
[343456176,1732632452132,-153.54672734,0.00022747,2]
[343456177,1732632452153,-5308.41585805,0.00023612,2]
[343456179,1732632497692,183.4748385,0.00021557,2]
[343456221,1732632636392,-2330.01095465,0.00023141,2]
[343456223,1732632636404,-2151.6815188,0.00023141,2]
[343456224,1732632636415,-927.3510361,0.00023141,2]
[343456269,1732632638881,-13002.50796901,0.00023141,2]
[343456291,1732632639079,-6488.44852144,0.00023141,2]
[343456294,1732632639090,-300.0,0.00023612,2]
[343456297,1732632639100,-2081.29402727,0.00023613,2]
[343456299,1732632639109,-300.0,0.00023613,2]
[343456302,1732632639119,-580.788087,0.00023714,2]
[343456304,1732632639128,-1265.0,0.00023717,2]
[343456306,1732632639138,-9913.73577516,0.00023718,2]
[343456308,1732632639147,-167.834019,0.00023718,2]
[343456310,1732632639156,-1783.96017464,0.00023825,2]
[343456312,1732632639166,-1578.5862428,0.00023825,2]
[343456314,1732632639176,-212.939457,0.00024017,2]
[343456316,1732632639186,-161.742861,0.00024174,2]
[343456318,1732632639198,-298.952,0.00024398,6]
[343456320,1732632639207,-9870.15121042,0.00024745,2]
[343456322,1732632639218,-9870.15121042,0.00024961,2]
[343456324,1732632639230,-500.0,0.00024973,2]
[343456326,1732632639240,-501.15609388,0.00024973,2]
[343456328,1732632639249,-539.01412804,0.00024973,2]
[343456330,1732632639258,-504.4889735,0.00024973,2]
[343456332,1732632639268,-500.0,0.00024973,2]
[343456334,1732632639278,-501.06204338,0.00024973,2]
[343456336,1732632639287,-502.47426701,0.00024973,2]
[343456338,1732632639296,-500.0,0.00024973,2]
[343456340,1732632639307,-501.56317806,0.00024973,2]
[343456342,1732632639317,-1173.99,0.0002498,10]
[343456344,1732632639327,-978.32,0.0002498,10]
[343456346,1732632639337,-811.54,0.00024987,3]
[343456348,1732632639346,-751.91,0.00024987,10]
[343456350,1732632639355,-219.95866869,0.00024988,7]
[343456352,1732632639364,-34708.22795864,0.0002499,2]
[343456354,1732632639374,-500.0,0.00024996,2]
[343456356,1732632639384,-500.0,0.00024996,2]
[343456358,1732632639394,-392.87227369,0.00024996,2]
[343456360,1732632639403,-500.0,0.00024996,2]
[343456362,1732632639413,-589.07397732,0.00024996,2]
[343456364,1732632639422,-500.0,0.00024996,2]
[343456366,1732632639431,-222.14568432,0.00024996,2]
[343456368,1732632639440,-500.0,0.00024996,2]
[343456370,1732632639453,-173.61916732,0.00024996,2]
[343456430,1732632640987,-326.38083268,0.00024996,2]
[343456431,1732632640997,-500.0,0.00024996,2]
[343456432,1732632641007,-316.17311074,0.00024996,2]
[343456433,1732632641018,-500.0,0.00024996,2]
[343456434,1732632641027,-500.0,0.00024996,2]
[343456435,1732632641037,-500.0,0.00024996,2]
[343456436,1732632641048,-500.0,0.00024996,2]
[343456437,1732632641058,-500.0,0.00024996,2]
[343456438,1732632641068,-500.0,0.00024996,2]
[343456439,1732632641077,-500.0,0.00024996,2]
[343456440,1732632641087,-500.0,0.00024996,2]
[343456441,1732632641097,-500.0,0.00024996,2]
[343456442,1732632641106,-500.0,0.00024996,2]
[343456443,1732632641117,-500.0,0.00024996,2]
[343456444,1732632641127,-500.0,0.00024996,2]
[343456445,1732632641137,-500.0,0.00024996,2]
[343456446,1732632641146,-500.0,0.00024996,2]
[343456447,1732632641156,-500.0,0.00024996,2]
[343456448,1732632641166,-500.0,0.00024996,2]
[343456449,1732632641175,-608.75030093,0.00024996,2]
[343456450,1732632641186,-500.0,0.00024996,2]
[343456451,1732632641198,-500.0,0.00024996,2]
[343456452,1732632641207,-500.0,0.00024996,2]
[343456453,1732632641217,-500.0,0.00024996,2]
[343456454,1732632641226,-500.0,0.00024996,2]
[343456455,1732632641238,-500.0,0.00024996,2]
[343456456,1732632641248,-500.0,0.00024996,2]
[343456457,1732632641258,-500.0,0.00024996,2]
[343456458,1732632641267,-500.0,0.00024996,2]
[343456459,1732632641278,-500.0,0.00024996,2]
[343456460,1732632641288,-500.0,0.00024996,2]
[343456461,1732632641298,-500.0,0.00024996,2]
[343456462,1732632641307,-500.0,0.00024996,2]
[343456463,1732632641319,-500.0,0.00024996,2]
[343456464,1732632641329,-293.05924559,0.00024996,2]
[343456465,1732632641339,-500.0,0.00024996,2]
[343456466,1732632641348,-500.0,0.00024996,2]
[343456467,1732632641358,-500.0,0.00024996,2]
[343456468,1732632641367,-500.0,0.00024996,2]
[343456469,1732632641377,-500.0,0.00024996,2]
[343456470,1732632641387,-500.0,0.00024996,2]
[343456471,1732632641396,-500.0,0.00024996,2]
[343456472,1732632641407,-500.0,0.00024996,2]
[343456473,1732632641417,-500.0,0.00024996,2]
[343456474,1732632641427,-500.0,0.00024996,2]
[343456475,1732632641438,-500.0,0.00024996,2]
[343456476,1732632641451,-500.0,0.00024996,2]
[343456477,1732632641461,-500.0,0.00024996,2]
[343456478,1732632641470,-500.0,0.00024996,2]
[343456479,1732632641480,-500.0,0.00024996,2]
[343456480,1732632641490,-500.0,0.00024996,2]
[343456481,1732632641499,-500.0,0.00024996,2]
[343456482,1732632641592,-500.0,0.00024996,2]
[343456483,1732632641603,-500.0,0.00024996,2]
[343456484,1732632641613,-500.0,0.00024996,2]
[343456485,1732632641623,-500.0,0.00024996,2]
[343456486,1732632641633,-500.0,0.00024996,2]
[343456487,1732632641642,-500.0,0.00024996,2]
[343456488,1732632641652,-500.0,0.00024996,2]
[343456489,1732632641661,-500.0,0.00024996,2]
[343456490,1732632641671,-500.0,0.00024996,2]
[343456491,1732632641681,-500.0,0.00024996,2]
[343456492,1732632641690,-500.0,0.00024996,2]
[343456493,1732632641705,-500.0,0.00024996,2]
[343456494,1732632641714,-500.0,0.00024996,2]
[343456495,1732632641723,-500.0,0.00024996,2]
[343456496,1732632641733,-500.0,0.00024996,2]
[343456497,1732632641743,-500.0,0.00024996,2]
[343456498,1732632641753,-500.0,0.00024996,2]
[343456499,1732632641763,-500.0,0.00024996,2]
[343456500,1732632641772,-500.0,0.00024996,2]
[343456501,1732632641782,-500.0,0.00024996,2]
[343456502,1732632641792,-500.0,0.00024996,2]
[343456503,1732632641801,-500.0,0.00024996,2]
[343456504,1732632641811,-500.0,0.00024996,2]
[343456505,1732632641820,-500.0,0.00024996,2]
[343456506,1732632641830,-500.0,0.00024996,2]
[343456507,1732632641839,-500.0,0.00024996,2]
[343456508,1732632641849,-500.0,0.00024996,2]
[343456509,1732632641860,-500.0,0.00024996,2]
[343456510,1732632641869,-500.0,0.00024996,2]
[343456511,1732632641879,-291.85742166,0.00025,2]
[343456512,1732632641892,-1521.77643962,0.00025,2]
[343456536,1732632643921,-500.0,0.00024996,2]
[343456537,1732632643931,-32.69673102,0.00024996,2]
[343456538,1732632644008,-467.30326898,0.00024996,2]
[343456539,1732632644018,-500.0,0.00024996,2]
[343456540,1732632644028,-500.0,0.00024996,2]
[343456541,1732632644037,-300.0,0.00024996,2]
[343456542,1732632644046,-500.0,0.00024996,2]
[343456544,1732632644056,-500.0,0.00024996,2]
[343456546,1732632644066,-500.0,0.00024996,2]
[343456548,1732632644075,-500.0,0.00024996,2]
[343456550,1732632644085,-151824.03949593,0.00025,2]
[343456552,1732632644094,-302.8788636,0.00025,2]
[343456554,1732632644103,-311.0151222,0.00025153,2]
[343456556,1732632644113,-151.68161684,0.0002525,2]
[343456559,1732632644122,-3885.38884608,0.00025298,7]
[343456561,1732632644134,-1114.61115392,0.00025298,7]
[343456563,1732632644144,-6528.70914617,0.00025398,2]
[343456594,1732632646826,-815.27,0.0002499,10]
[343456595,1732632646835,-500.0,0.00024996,2]
[343456596,1732632646845,-500.0,0.00024996,2]
[343456597,1732632646854,-500.0,0.00024996,2]
[343456598,1732632646863,-500.0,0.00024996,2]
[343456599,1732632646873,-3341.44206427,0.00025398,2]
[343456600,1732632646882,-1000.0,0.00025521,2]
[343456601,1732632646892,-1000.0,0.00025521,2]
[343456602,1732632646901,-420.0,0.00025617,2]
[343456603,1732632646910,-172.0564946,0.00025854,2]
[343456604,1732632646919,-420.0,0.00025973,2]
[343456605,1732632646928,-161.742861,0.00025981,2]
[343456606,1732632646938,-1500.0,0.00026,2]
[343456607,1732632646950,-310.05075611,0.0002641,2]
[343456608,1732632646960,-1509.61985315,0.00026522,2]
[343456609,1732632646970,-876.69576946,0.00026522,2]
[343456610,1732632646979,-168.5,0.00027345,6]
[343456611,1732632646989,-500.0,0.00027397,2]
[343456612,1732632646998,-1119.17075359,0.000274,2]
[343456613,1732632647008,-709.98246118,0.000274,2]
[343456614,1732632647018,-500.0,0.00027473,5]
[343456615,1732632647028,-500.0,0.00027473,5]
[343456616,1732632647037,-500.0,0.00027473,5]
[343456617,1732632647047,-558.55770077,0.00027473,5]
[343456618,1732632647056,-500.0,0.00027473,5]
[343456619,1732632647065,-500.0,0.00027473,5]
[343456620,1732632647074,-500.0,0.00027473,5]
[343456621,1732632647084,-500.0,0.00027473,5]
[343456622,1732632647093,-500.0,0.00027473,5]
[343456623,1732632647102,-515.5679562,0.00027473,5]
[343456624,1732632647112,-500.0,0.00027473,5]
[343456625,1732632647122,-161.1949001,0.00027473,5]
[343456626,1732632647131,-500.0,0.00027473,5]
[343456627,1732632647141,-500.0,0.00027473,5]
[343456628,1732632647150,-352.29131117,0.00027499,2]
[343456629,1732632647159,-500.0,0.00027499,2]
[343456630,1732632647169,-290.12198089,0.00027499,2]
[343456631,1732632647178,-432.53855432,0.00027499,2]
[343456632,1732632647188,-500.0,0.00027499,2]
[343456633,1732632647199,-158.08573265,0.00027499,2]
[343456634,1732632647209,-152.77698802,0.00027499,2]
[343456635,1732632647219,-279986.88,0.000275,5]
[343456636,1732632647229,-64327.19,0.000275,5]
[343456637,1732632647242,-1119.17075355,0.0002765,2]
[343456638,1732632647252,-310.00253781,0.00027731,2]
[343456639,1732632647261,-587.0,0.00027792,2]
[343456640,1732632647271,-709.98246114,0.00027854,2]
[343456641,1732632647282,-1119.17075355,0.00027901,2]
[343456642,1732632647291,-16052.63869261,0.00028,2]
[343456643,1732632647300,-2000.0,0.00028,2]
[343456644,1732632647310,-500.0,0.00028021,5]
[343456645,1732632647320,-1000.0,0.00028021,5]
[343456646,1732632647329,-501.11108221,0.00028021,5]
[343456647,1732632647338,-1000.0,0.00028021,5]
[343456648,1732632647347,-506.41494876,0.00028021,5]
[343456649,1732632647357,-1000.0,0.00028021,5]
[343456650,1732632647366,-1000.0,0.00028021,5]
[343456651,1732632647375,-1000.0,0.00028021,5]
[343456652,1732632647384,-1000.0,0.00028021,5]
[343456653,1732632647394,-1000.0,0.00028021,5]
[343456654,1732632647403,-168.5,0.00028041,6]
[343456655,1732632647412,-1119.17075355,0.00028151,2]
[343456656,1732632647421,-849.70425997,0.00028263,2]
[343456657,1732632647431,-500.0,0.00028294,2]
[343456658,1732632647440,-709.98246114,0.00028308,2]
[343456659,1732632647453,-1119.17075355,0.00028402,2]
[343456660,1732632647462,-600.0,0.0002847,2]
[343456661,1732632647471,-587.0,0.00028571,2]
[343456662,1732632647480,-500.0,0.00028576,2]
[343456663,1732632647489,-500.0,0.00028612,2]
[343456664,1732632647499,-1119.17075355,0.00028652,2]
[343456665,1732632647581,-168.5,0.00028736,7]
[343456666,1732632647591,-428.548861,0.0002874,30]
[343456667,1732632647601,-709.98246114,0.00028761,2]
[343456668,1732632647610,-608.79657167,0.00028766,2]
[343456669,1732632647620,-500.0,0.00028767,4]
[343456670,1732632647629,-467.6575396,0.00028877,30]
[343456671,1732632647638,-500.0,0.00028885,2]
[343456672,1732632647648,-1119.17075355,0.00028903,2]
[343456673,1732632647657,-153.0,0.00028922,2]
[343456674,1732632647666,-500.0,0.00028952,2]
[343456675,1732632647675,-75371.155,0.00029,20]
[343456676,1732632647685,-1001.7160403,0.00029022,5]
[343456677,1732632647694,-500.78256721,0.00029022,5]
[343456678,1732632647707,-1000.0,0.00029022,5]
[343456679,1732632647716,-1500.0,0.00029022,5]
[343456680,1732632647725,-1500.0,0.00029022,5]
[343456681,1732632647735,-500.0,0.00029022,5]
[343456682,1732632647744,-578.43230294,0.00029022,5]
[343456683,1732632647754,-150.0,0.00029114,2]
[343456684,1732632647763,-531.0,0.00029114,2]
[343456685,1732632647773,-2378.0,0.00029114,2]
[343456686,1732632647782,-1107.0,0.00029114,2]
[343456687,1732632647791,-150.205,0.00029114,2]
[343456688,1732632647801,-1562.618,0.00029114,2]
[343456689,1732632647811,-310.00012689,0.00029118,2]
[343456690,1732632647821,-1119.17075355,0.00029153,2]
[343456691,1732632647830,-178.32,0.000292,31]
[343456692,1732632647840,-178.32,0.000292,31]
[343456693,1732632647850,-178.32,0.000292,31]
[343456694,1732632647860,-178.32,0.000292,31]
[343456695,1732632647869,-178.32,0.000292,31]
[343456696,1732632647879,-178.32,0.000292,31]
[343456697,1732632647888,-178.32,0.000292,31]
[343456698,1732632647898,-178.32,0.000292,31]
[343456699,1732632647907,-178.32,0.000292,31]
[343456700,1732632647917,-178.32,0.000292,31]
[343456701,1732632647927,-178.32,0.000292,31]
[343456702,1732632647936,-178.32,0.000292,31]
[343456703,1732632647947,-709.98246114,0.00029215,2]
[343456704,1732632647960,-666.0,0.00029215,2]
[343456705,1732632647969,-161.32101328,0.00029314,10]
[343456706,1732632647979,-506.6346211,0.00029315,2]
[343456707,1732632647989,-501.10325114,0.00029315,2]
[343456708,1732632647999,-501.52556108,0.00029315,2]
[343456709,1732632648008,-555.56102397,0.00029315,2]
[343456710,1732632648018,-501.91434071,0.00029315,2]
[343456711,1732632648028,-552.55498,0.00029315,7]
[343456712,1732632648038,-552.55498,0.00029315,7]
[343456713,1732632648048,-501.8473598,0.00029315,2]
[343456714,1732632648058,-248.037287,0.00029315,7]
[343456715,1732632648069,-248.037287,0.00029315,7]
[343456716,1732632648079,-501.10441672,0.00029315,2]
[343456717,1732632648089,-500.0,0.00029315,2]
[343456718,1732632648099,-502.73225548,0.00029315,2]
[343456719,1732632648109,-500.0,0.00029315,2]
[343456720,1732632648119,-551.53696571,0.00029315,2]
[343456721,1732632648129,-500.0,0.00029315,2]
[343456722,1732632648139,-500.0,0.00029315,2]
[343456723,1732632648149,-501.63206971,0.00029315,2]
[343456724,1732632648159,-297.8303635,0.00029315,2]
[343456725,1732632648169,-291.95178032,0.00029315,2]
[343456726,1732632648179,-264.65852055,0.00029315,2]
[343456727,1732632648189,-440.56530656,0.00029315,2]
[343456728,1732632648198,-504.17465537,0.00029315,2]
[343456729,1732632648210,-502.37267169,0.00029315,2]